bitfinex-derivatives/quotes_BTCF0:USTF0_20250429
["timestamp","ask_amount","ask_price","bid_price","bid_amount"]
[1745922876321,0.3305942,94937.0,94936.0,0.43723364]
[1745922876715,0.3305942,94937.0,94936.0,0.44223364]
[1745922876916,0.3305942,94937.0,94936.0,0.44723364]
[1745922878824,0.12,94937.0,94936.0,0.55256564]
[1745922886823,0.12,94937.0,94936.0,0.58356564]
[1745922887130,0.0323,94943.0,94942.0,0.2105811]
[1745922887319,0.0323,94943.0,94942.0,0.22655254]
[1745922887519,0.0323,94943.0,94942.0,0.43720254]
[1745922888133,0.1523,94943.0,94942.0,0.43720254]
[1745922888334,0.1523,94943.0,94942.0,0.23062144]
[1745922888526,0.1523,94943.0,94942.0,0.44120254]
[1745922889231,0.1523,94943.0,94942.0,0.44520254]
[1745922891037,0.2105493,94957.0,94942.0,0.33994944]
[1745922891329,0.12,94943.0,94942.0,0.2185811]
[1745922891635,0.12,94943.0,94942.0,0.47710254]
[1745922891828,0.12,94943.0,94942.0,0.58243054]
[1745922892220,0.2416494,94957.0,94956.0,0.2105501]
[1745922892728,0.4522694,94957.0,94956.0,0.2105501]
[1745922893123,0.5722694,94957.0,94956.0,0.2105501]
[1745922893929,0.5722694,94957.0,94956.0,0.2115501]
[1745922894931,0.6032694,94957.0,94956.0,0.2125501]
[1745922905336,0.6032679,94957.0,94956.0,0.2125501]
[1745922909545,0.39272,94957.0,94956.0,0.2125501]
[1745922909743,0.6032679,94957.0,94956.0,0.2125501]
[1745922909945,0.39272,94957.0,94956.0,0.2125501]
[1745922910152,0.068,94982.0,94974.0,0.2105102]
[1745922910340,0.052626,94977.0,94974.0,0.2105102]
[1745922910541,0.422588,94975.0,94974.0,0.2105102]
[1745922911344,0.1215,94975.0,94974.0,0.43706164]
[1745922911541,0.1215,94975.0,94974.0,0.50006164]
[1745922911741,0.1265,94975.0,94974.0,0.50006164]
[1745922912446,0.1245,94975.0,94974.0,0.43706164]
[1745922912648,0.1245,94975.0,94974.0,0.43806164]
[1745922912949,0.1215,94975.0,94974.0,0.43906164]
[1745922913142,0.332008,94975.0,94974.0,0.43906164]
[1745922914044,0.332008,94975.0,94974.0,0.43806164]
[1745922914240,0.332008,94975.0,94974.0,0.44006164]
[1745922914440,0.332008,94975.0,94974.0,0.43906164]
[1745922914640,0.332008,94975.0,94974.0,0.44106164]
[1745922915042,0.332008,94975.0,94974.0,0.43906164]
[1745922915240,0.332008,94975.0,94974.0,0.44006164]
[1745922920842,0.542588,94975.0,94974.0,0.003]
[1745922921044,0.3157895,94969.0,94968.0,0.2105235]
[1745922921652,0.5263895,94969.0,94968.0,0.2105235]
[1745922921849,0.4737562,94969.0,94968.0,0.2105235]
[1745922922243,0.6574562,94969.0,94968.0,0.2105235]
[1745922922548,0.6574562,94969.0,94968.0,0.2452235]
[1745922923054,0.6249562,94969.0,94968.0,0.47179494]
[1745922923244,0.5723257,94969.0,94968.0,0.50319494]
[1745922923849,0.5723257,94969.0,94968.0,0.50019494]
[1745922924151,0.5733257,94969.0,94968.0,0.50219494]
[1745922924841,0.5733257,94969.0,94968.0,0.47079494]
[1745922925047,0.5743257,94969.0,94968.0,0.46879494]
[1745922929041,0.3637257,94969.0,94968.0,0.46879494]
[1745922929247,0.5743257,94969.0,94968.0,0.46879494]
[1745922932259,0.1532,94969.0,94968.0,0.46879494]
[1745922932458,0.122,94969.0,94968.0,0.46879494]
[1745922939552,0.0015,94975.0,94974.0,0.2105102]
[1745922939756,0.0015,94975.0,94974.0,0.22648164]
[1745922939965,0.0661,94975.0,94974.0,0.43706164]
[1745922940164,0.1861,94975.0,94974.0,0.43706164]
[1745922940360,0.1861,94975.0,94974.0,0.46786164]
[1745922940755,0.1901,94975.0,94974.0,0.46786164]
[1745922945369,0.1578,94975.0,94974.0,0.46786164]
[1745922947870,0.1558,94975.0,94974.0,0.46886164]
[1745922948169,0.1538,94975.0,94974.0,0.46986164]
[1745922948361,0.1538,94975.0,94974.0,0.47186164]
[1745922949571,0.1538,94975.0,94974.0,0.47386164]
[1745922952767,0.1538,94975.0,94974.0,0.2473102]
[1745922953163,0.1863,94975.0,94974.0,0.2473102]
[1745922953364,0.1863,94975.0,94974.0,0.2463102]
[1745922954174,0.1863,94975.0,94974.0,0.2453102]
[1745922954379,0.396808,94975.0,94974.0,0.2453102]
[1745922954867,0.396808,94975.0,94974.0,0.2443102]
[1745922955664,0.396808,94975.0,94974.0,0.2423102]
[1745922955868,0.396808,94975.0,94974.0,0.2443102]
[1745922957171,0.396808,94975.0,94974.0,0.2433102]
[1745922957881,0.396808,94975.0,94974.0,0.2125102]
[1745922958176,0.607388,94975.0,94974.0,0.2125102]
[1745922959567,0.607388,94975.0,94974.0,0.2115102]
[1745922960468,0.607388,94975.0,94974.0,0.2105102]
[1745922968780,0.39688,94975.0,94974.0,0.2105102]
[1745922968972,0.607388,94975.0,94974.0,0.2105102]
[1745922970272,0.39688,94975.0,94974.0,0.2105102]
[1745922970472,0.36438,94975.0,94974.0,0.43706164]
[1745922971383,0.1215,94975.0,94974.0,0.43706164]
[1745922974780,0.1521,94975.0,94974.0,0.43706164]
[1745922975882,0.1215,94975.0,94974.0,0.43706164]
[1745922981688,0.1194,94975.0,94974.0,0.43706164]
[1745922983681,0.264545,95010.0,94985.0,0.01597144]
[1745922983877,0.0302,95003.0,95002.0,0.2104482]
[1745922984177,0.1502,95003.0,95002.0,1.7104482]
[1745922984383,0.36072,95003.0,95002.0,1.7104482]
[1745922984590,0.1502,95003.0,95002.0,1.7423482]
[1745922985578,0.36072,95003.0,95002.0,1.7423482]
[1745922986080,0.1502,95003.0,95002.0,1.7423482]
[1745922986502,0.1502,95003.0,95002.0,1.7443482]
[1745922986689,0.1502,95003.0,95002.0,1.7463482]
[1745922989193,0.1502,95003.0,95002.0,1.97283964]
[1745922989385,0.12,95003.0,95002.0,1.97283964]
[1745922994086,0.12,95003.0,95002.0,1.76239144]
[1745922994286,0.12,95003.0,95002.0,1.97283964]
[1745922996593,0.03,95009.0,95008.0,0.2104349]
[1745922996796,0.03,95009.0,95008.0,0.58720634]
[1745922996994,0.03,95009.0,95008.0,0.5712349]
[1745922997294,0.15,95009.0,95008.0,0.5712349]
[1745922997490,0.15,95009.0,95008.0,0.6343349]
[1745922997689,0.15,95009.0,95008.0,0.6353349]
[1745922998891,0.15,95009.0,95008.0,0.6363349]
[1745923002492,0.15,95009.0,95008.0,0.6038349]
[1745923008295,0.15,95009.0,95008.0,0.83031634]
[1745923009490,0.15,95009.0,95008.0,0.6038349]
[1745923009692,0.15,95009.0,95008.0,0.83031634]
[1745923011592,0.15,95009.0,95008.0,0.46951634]
[1745923011794,0.15,95009.0,95008.0,0.83031634]
[1745923013004,0.15,95009.0,95008.0,0.46951634]
[1745923013194,0.15,95009.0,95008.0,0.83031634]
[1745923013395,0.15,95009.0,95008.0,0.46951634]
[1745923013596,0.15,95009.0,95008.0,0.83031634]
[1745923016107,0.15,95009.0,95008.0,0.46951634]
[1745923016304,0.15,95009.0,95008.0,0.83031634]
[1745923016808,0.5709426,95009.0,95008.0,0.5732349]
[1745923017304,0.5709426,95009.0,95008.0,0.2124349]
[1745923018409,0.5709426,95009.0,95008.0,0.2114349]
[1745923018608,0.5709426,95009.0,95008.0,0.2104349]
[1745923019303,0.36051,95009.0,95008.0,0.2104349]
[1745923019709,0.5709426,95009.0,95008.0,0.2104349]
[1745923019905,0.6025426,95009.0,95008.0,0.2104349]
[1745923020101,0.39211,95009.0,95008.0,0.2104349]
[1745923020896,0.39211,95009.0,95008.0,0.5712349]
[1745923021309,0.1816,95009.0,95008.0,0.5712349]
[1745923021606,0.1816,95009.0,95008.0,0.6325349]
[1745923024608,0.12,95009.0,95008.0,0.85901634]
[1745923030210,0.12,95009.0,95008.0,2.35901634]
[1745923030403,0.12,95009.0,95008.0,2.37180384]
[1745923030603,0.12,95009.0,95008.0,2.43964384]
[1745923032113,0.12,95009.0,95008.0,2.42685634]
[1745923032313,0.12,95009.0,95008.0,2.42785634]
[1745923033308,0.12,95009.0,95008.0,2.42885634]
[1745923040613,0.0136,95012.0,95011.0,0.2104282]
[1745923040817,0.0136,95012.0,95011.0,0.22639964]
[1745923041018,0.0136,95012.0,95011.0,0.43689964]
[1745923041317,0.1336,95012.0,95011.0,1.93689964]
[1745923041525,0.1336,95012.0,95011.0,1.96759964]
[1745923043918,0.1336,95012.0,95011.0,2.32839964]
[1745923051210,0.2103764,95038.0,95021.0,0.0526015]
[1745923051410,0.0624,95027.0,95026.0,0.210395]
[1745923051615,0.0624,95027.0,95026.0,0.240595]
[1745923051821,0.27287,95027.0,95026.0,0.240595]
[1745923052216,0.39287,95027.0,95026.0,0.240595]
[1745923052711,0.39587,95027.0,95026.0,0.240595]
[1745923053513,0.39787,95027.0,95026.0,0.240595]
[1745923056323,0.1874,95027.0,95026.0,0.240595]
[1745923061517,0.2204,95027.0,95026.0,0.240595]
[1745923061920,0.43087,95027.0,95026.0,0.240595]
[1745923062818,0.2103972,95026.0,95025.0,0.2103959]
[1745923063025,0.4208672,95026.0,95025.0,0.2103959]
[1745923063228,0.6021672,95026.0,95025.0,0.2103959]
[1745923063923,0.6041672,95026.0,95025.0,0.2103959]
[1745923064314,0.6061672,95026.0,95025.0,0.2103959]
[1745923065820,0.6061672,95026.0,95025.0,0.2411959]
[1745923072428,0.6061672,95026.0,95025.0,0.2103959]
[1745923072622,0.2104039,95024.0,95023.0,0.2103999]
[1745923072925,0.2104105,95019.0,95018.0,0.2630109]
[1745923073131,0.3304105,95019.0,95018.0,0.2630109]
[1745923073328,0.5409005,95019.0,95018.0,0.2630109]
[1745923073732,0.6367005,95019.0,95018.0,0.2630109]
[1745923074030,0.2104171,95017.0,95016.0,0.2104155]
[1745923074416,0.4856071,95017.0,95016.0,0.2104155]
[1745923075131,0.6056071,95017.0,95016.0,0.2104155]
[1745923076133,0.6066071,95017.0,95016.0,0.2104155]
[1745923076544,0.6076071,95017.0,95016.0,0.2104155]
[1745923078438,0.6076071,95017.0,95016.0,0.2421155]
[1745923081732,0.36429,95017.0,95016.0,0.2421155]
[1745923081935,0.122,95017.0,95016.0,0.32068694]
[1745923082241,0.122,95017.0,95016.0,0.53117694]
[1745923082432,0.122,95017.0,95016.0,0.89197694]
[1745923083239,0.3324149,95017.0,95016.0,0.89197694]
[1745923085040,0.122,95017.0,95016.0,0.89197694]
[1745923088645,0.10605629,95017.0,95016.0,0.89197694]
[1745923106853,0.10605629,95017.0,95016.0,0.50057694]
[1745923107048,0.10605629,95017.0,95016.0,0.86137694]
[1745923111551,0.31654629,95017.0,95016.0,0.6029155]
[1745923115155,0.52696119,95017.0,95016.0,0.5712155]
[1745923115455,0.31654629,95017.0,95016.0,0.5712155]
[1745923115652,0.31654629,95017.0,95016.0,0.6018155]
[1745923115955,0.32926359,95017.0,95016.0,0.6018155]
[1745923116255,0.31654629,95017.0,95016.0,0.6018155]
[1745923117552,0.38144629,95017.0,95016.0,0.6018155]
[1745923117758,0.59186119,95017.0,95016.0,0.6018155]
[1745923120658,0.38144629,95017.0,95016.0,0.6018155]
[1745923124854,0.59186119,95017.0,95016.0,0.6018155]
[1745923128464,0.38144629,95017.0,95016.0,0.6018155]
[1745923129048,0.38144629,95017.0,95016.0,0.2410155]
[1745923137666,0.38144629,95017.0,95016.0,0.2735155]
[1745923138967,0.17095629,95017.0,95016.0,0.2735155]
[1745923139160,0.38144629,95017.0,95016.0,0.2735155]
[1745923141073,0.34854629,95017.0,95016.0,0.2735155]
[1745923141371,0.10605629,95017.0,95016.0,0.49997694]
[1745923141580,0.10605629,95017.0,95016.0,0.53067694]
[1745923150066,0.10505629,95017.0,95016.0,0.53067694]
[1745923150259,0.10405629,95017.0,95016.0,0.53067694]
[1745923153061,0.10405629,95017.0,95016.0,2.03067694]
[1745923156172,0.10405629,95017.0,95016.0,0.53067694]
[1745923156368,0.10405629,95017.0,95016.0,0.49997694]
[1745923158371,0.10405629,95017.0,95016.0,0.46747694]
[1745923159869,0.31454629,95017.0,95016.0,0.46747694]
[1745923162373,0.10405629,95017.0,95016.0,0.46747694]
[1745923162678,0.10405629,95017.0,95016.0,0.53067694]
[1745923163880,0.10405629,95017.0,95016.0,2.03067694]
[1745923168979,0.10405629,95017.0,95016.0,2.0147055]
[1745923169175,0.10405629,95017.0,95016.0,2.03067694]
[1745923171285,0.10405629,95017.0,95016.0,0.53067694]
[1745923174280,0.10405629,95017.0,95016.0,0.49987694]
[1745923183088,0.10405629,95017.0,95016.0,0.2410155]
[1745923183287,0.31454629,95017.0,95016.0,0.2410155]
[1745923185081,0.31454629,95017.0,95016.0,0.2104155]
[1745923185685,0.37634629,95017.0,95016.0,0.2104155]
[1745923186383,0.58676119,95017.0,95016.0,0.2104155]
[1745923186585,0.38922653,95017.0,95016.0,0.2104155]
[1745923189488,0.17873653,95017.0,95016.0,0.2104155]
[1745923189794,0.38922653,95017.0,95016.0,0.2104155]
[1745923192195,0.59964143,95017.0,95016.0,0.2104155]
[1745923192396,0.38922653,95017.0,95016.0,0.2104155]
[1745923192597,0.70488543,95017.0,95016.0,0.2104155]
[1745923194492,0.0526048,95016.0,95011.0,0.052607]
[1745923194694,0.2104304,95010.0,95009.0,0.2630362]
[1745923194895,0.5712304,95010.0,95009.0,0.2630362]
[1745923195193,0.2630567,95005.0,94999.0,0.0526134]
[1745923195394,0.2104459,95003.0,95002.0,0.3156693]
[1745923195790,0.5262259,95003.0,95002.0,0.3156693]
[1745923195998,0.0526137,94999.0,94995.0,0.05419421]
[1745923196195,0.3273761,94998.0,94997.0,0.210457]
[1745923196394,0.5379061,94998.0,94997.0,0.210457]
[1745923197296,0.6579061,94998.0,94997.0,0.210457]
[1745923199494,0.6599061,94998.0,94997.0,0.210457]
[1745923199693,0.6599061,94998.0,94997.0,0.240857]
[1745923201593,0.0526164,94995.0,94986.0,0.2104827]
[1745923201893,0.2104836,94986.0,94979.0,0.0526244]
[1745923202099,0.3157636,94986.0,94985.0,0.21153859]
[1745923202396,0.5263236,94986.0,94985.0,0.00105279]
[1745923202900,0.60391163,94986.0,94985.0,0.21153859]
[1745923203097,0.7109236,94986.0,94985.0,0.21153859]
[1745923203292,0.7109236,94986.0,94985.0,0.21353859]
[1745923203799,0.7109236,94986.0,94985.0,0.21553859]
[1745923204195,0.6056436,94986.0,94985.0,0.21553859]
[1745923204502,0.61825861,94986.0,94985.0,0.21553859]
[1745923205402,0.61825861,94986.0,94985.0,0.21153859]
[1745923208503,0.61925861,94986.0,94985.0,0.21153859]
[1745923210104,0.62025861,94986.0,94985.0,0.21153859]
[1745923218908,0.62025861,94986.0,94985.0,0.00105279]
[1745923219096,0.62025861,94986.0,94985.0,0.21153859]
[1745923220715,0.62025861,94986.0,94985.0,0.00105279]
[1745923221511,0.62025861,94986.0,94985.0,0.03415279]
[1745923224716,0.98105861,94986.0,94985.0,0.03415279]
[1745923239107,0.98105861,94986.0,94985.0,0.27643859]
[1745923239922,0.98105861,94986.0,94985.0,0.06595279]
[1745923244217,0.98105861,94986.0,94985.0,0.27643859]
[1745923244417,0.94805861,94986.0,94985.0,0.27643859]
[1745923248311,0.94805861,94986.0,94985.0,0.50297003]
[1745923252627,0.91645861,94986.0,94985.0,0.50297003]
[1745923255327,0.91645861,94986.0,94985.0,0.29248423]
[1745923255530,0.91645861,94986.0,94985.0,0.50297003]
[1745923256130,0.91645861,94986.0,94985.0,0.29248423]
[1745923256430,0.91645861,94986.0,94985.0,0.50297003]
[1745923257429,0.91645861,94986.0,94985.0,0.29248423]
[1745923257630,0.91645861,94986.0,94985.0,0.50297003]
[1745923262628,0.91645861,94986.0,94985.0,0.24463859]
[1745923262835,0.2631183,94982.0,94981.0,0.22646574]
[1745923263434,0.5350883,94982.0,94981.0,0.2104943]
[1745923264230,0.2105146,94973.0,94972.0,0.2104994]
[1745923264430,0.0526322,94966.0,94956.0,1.5526369]
[1745923264729,0.210539,94962.0,94961.0,0.2631737]
[1745923265132,0.391439,94962.0,94961.0,0.48975514]
[1745923265329,0.40442305,94962.0,94961.0,0.48975514]
[1745923265522,0.40442305,94962.0,94961.0,0.54238984]
[1745923266018,0.40442305,94962.0,94961.0,0.60708984]
[1745923266528,0.40442305,94962.0,94961.0,0.61008984]
[1745923267325,0.40442305,94962.0,94961.0,0.61308984]
[1745923270433,0.40442305,94962.0,94961.0,0.26498144]
[1745923270624,0.40442305,94962.0,94961.0,0.47552044]
[1745923271336,0.391439,94962.0,94961.0,0.47552044]
[1745923273137,0.360539,94962.0,94961.0,0.47552044]
[1745923277834,0.330539,94962.0,94961.0,0.47552044]
[1745923279037,0.361639,94962.0,94961.0,0.47552044]
[1745923280342,0.394839,94962.0,94961.0,0.47552044]
[1745923291036,0.12,94962.0,94961.0,0.47552044]
[1745923291241,0.3305368,94962.0,94961.0,0.47552044]
[1745923291452,0.12,94962.0,94961.0,0.47552044]
[1745923298647,0.12,94962.0,94961.0,0.32828336]
[1745923300850,0.12,94962.0,94961.0,0.68908336]
[1745923301348,0.1522,94962.0,94961.0,0.68908336]
[1745923301539,0.1522,94962.0,94961.0,0.72218336]
[1745923301739,0.1522,94962.0,94961.0,0.36138336]
[1745923301940,0.1522,94962.0,94961.0,0.72218336]
[1745923302746,0.3958368,94962.0,94961.0,0.72218336]
[1745923310841,0.3958368,94962.0,94961.0,0.68908336]
[1745923311049,0.39591,94962.0,94955.0,0.00263285]
[1745923311249,0.2105457,94958.0,94957.0,0.31739585]
[1745923311551,0.2105457,94958.0,94957.0,0.37003225]
[1745923311745,0.4211657,94958.0,94957.0,0.37003225]
[1745923311946,0.4211657,94958.0,94957.0,0.31739585]
[1745923312146,0.6067657,94958.0,94957.0,0.31739585]
[1745923312448,0.6067657,94958.0,94957.0,0.32039585]
[1745923312841,0.6067657,94958.0,94957.0,0.32339585]
[1745923318658,0.1856,94958.0,94957.0,0.54998729]
[1745923318957,0.42603917,94990.0,94978.0,0.2631217]
[1745923319155,0.0526251,94979.0,94978.0,0.2631217]
[1745923319357,0.2631242,94979.0,94978.0,0.2631217]
[1745923319551,0.5037942,94979.0,94978.0,0.2631217]
[1745923320057,0.6237942,94979.0,94978.0,0.2631217]
[1745923320258,0.6237942,94979.0,94978.0,0.2104969]
[1745923320958,0.6257942,94979.0,94978.0,0.2104969]
[1745923321757,0.2105124,94974.0,94973.0,0.2105124]
[1745923322155,0.6060024,94974.0,94973.0,0.2105124]
[1745923323347,0.6070024,94974.0,94973.0,0.2105124]
[1745923329451,0.2105191,94970.0,94969.0,0.2951493]
[1745923329656,0.2105191,94970.0,94969.0,0.22649094]
[1745923329856,0.7819091,94970.0,94969.0,0.43708094]
[1745923330056,0.0526306,94969.0,94955.0,0.00105312]
[1745923330359,0.3158173,94960.0,94959.0,0.22651104]
[1745923330655,0.6766173,94960.0,94959.0,0.22651104]
[1745923330847,0.8872373,94960.0,94959.0,0.22651104]
[1745923331048,0.6766916,94960.0,94957.0,0.21212695]
[1745923331248,0.2735434,94959.0,94958.0,0.2105457]
[1745923331458,0.4841634,94959.0,94958.0,0.2105457]
[1745923332047,0.6041634,94959.0,94958.0,0.2105457]
[1745923332653,0.6041634,94959.0,94958.0,0.2125457]
[1745923333856,0.6041634,94959.0,94958.0,0.2155457]
[1745923336457,0.6041634,94959.0,94958.0,0.005]
[1745923337063,0.6041634,94959.0,94958.0,0.2155457]
[1745923337363,0.6041634,94959.0,94958.0,0.0376]
[1745923337558,0.6041634,94959.0,94958.0,0.2481457]
[1745923337955,0.39362,94959.0,94932.0,0.3608]
[1745923338163,0.2105678,94948.0,94947.0,0.2281214]
[1745923338356,0.4212078,94948.0,94947.0,0.4387614]
[1745923338565,0.4212078,94948.0,94947.0,0.2281214]
[1745923338867,0.4212078,94948.0,94947.0,0.0175513]
[1745923339073,0.4819078,94948.0,94947.0,0.0225513]
[1745923339267,0.6019078,94948.0,94947.0,0.0265513]
[1745923339471,0.6019078,94948.0,94947.0,0.01057986]
[1745923339667,0.61484798,94948.0,94947.0,0.00657986]
[1745923339864,0.61484798,94948.0,94947.0,0.00257986]
[1745923340172,0.61484798,94948.0,94947.0,0.00457986]
[1745923341368,0.0526485,94937.0,94933.0,0.2951449]
[1745923341570,0.0526485,94937.0,94935.0,0.01597144]
[1745923341571,0.7170436,94936.0,94935.0,0.01597144]
[1745923341867,0.21061,94929.0,94928.0,0.052653]
[1745923342069,0.33061,94929.0,94928.0,0.052653]
[1745923342273,0.33061,94929.0,94928.0,0.27930444]
[1745923342773,0.39161,94929.0,94928.0,0.48990674]
[1745923343566,0.39161,94929.0,94928.0,0.49390674]
[1745923344366,0.39161,94929.0,94928.0,0.49790674]
[1745923346964,0.39161,94929.0,94928.0,0.49690674]
[1745923347566,0.39161,94929.0,94928.0,0.49590674]
[1745923347973,0.60229,94929.0,94928.0,0.006]
[1745923349779,0.60229,94929.0,94928.0,0.2166122]
[1745923351179,0.60229,94929.0,94928.0,0.3115122]
[1745923357878,0.60229,94929.0,94928.0,0.006]
[1745923358679,0.66973,94929.0,94928.0,0.006]
[1745923358874,0.66973,94929.0,94928.0,0.037]
[1745923359076,0.2106166,94926.0,94925.0,0.21167186]
[1745923359469,0.4213066,94926.0,94925.0,0.21167186]
[1745923359679,0.4850066,94926.0,94925.0,0.21167186]
[1745923360179,0.6050066,94926.0,94925.0,0.21167186]
[1745923360977,0.6050066,94926.0,94925.0,0.21367186]
[1745923362179,0.6050066,94926.0,94925.0,0.21567186]
[1745923362381,0.6050066,94926.0,94925.0,0.00505346]
[1745923362579,0.6050066,94926.0,94925.0,0.21567236]
[1745923364782,0.6050066,94926.0,94925.0,0.00505346]
[1745923369482,0.39439,94926.0,94922.0,0.00158024]
[1745923369680,0.210641,94916.0,94915.0,0.2106407]
[1745923369882,0.210641,94916.0,94915.0,0.2436407]
[1745923370184,0.330641,94916.0,94915.0,0.47032214]
[1745923370584,0.393141,94916.0,94915.0,0.50342214]
[1745923370785,0.393141,94916.0,94915.0,0.50442214]
[1745923371184,0.393141,94916.0,94915.0,0.22768144]
[1745923371483,0.2106699,94903.0,94902.0,0.0301]
[1745923371879,0.2106699,94903.0,94902.0,0.504163]
[1745923372185,0.3306699,94903.0,94902.0,0.504163]
[1745923372590,0.3306699,94903.0,94902.0,0.568463]
[1745923372888,0.3306699,94903.0,94902.0,0.6241302]
[1745923373093,0.3306699,94903.0,94902.0,0.6281302]
[1745923376187,0.3306699,94903.0,94902.0,0.4173902]
[1745923376389,0.3306699,94903.0,94902.0,0.6281302]
[1745923378280,0.3631699,94903.0,94902.0,0.6281302]
[1745923378480,0.3306699,94903.0,94902.0,0.6281302]
[1745923379176,0.3631699,94903.0,94902.0,0.6281302]
[1745923379582,0.3306699,94903.0,94902.0,0.6271302]
[1745923379789,0.3639699,94903.0,94902.0,0.6271302]
[1745923380277,0.3306699,94903.0,94902.0,0.6271302]
[1745923385102,0.3630699,94903.0,94902.0,0.6271302]
[1745923386495,0.3306699,94903.0,94902.0,0.6271302]
[1745923388200,0.3306699,94903.0,94902.0,0.4163902]
[1745923388708,0.12,94903.0,94902.0,0.4163902]
[1745923388906,0.2106434,94920.0,94919.0,0.3159353]
[1745923389203,0.22361537,94920.0,94919.0,0.2632773]
[1745923389399,0.64502537,94920.0,94919.0,0.2632773]
[1745923389598,0.2106344,94918.0,94917.0,0.2632935]
[1745923389809,0.2106344,94918.0,94917.0,0.2106345]
[1745923390099,0.2106675,94904.0,94903.0,0.263333]
[1745923390401,0.2106622,94906.0,94905.0,0.2106632]
[1745923390804,0.2420622,94906.0,94905.0,1.7106632]
[1745923391189,0.3620622,94906.0,94905.0,1.7106632]
[1745923391595,0.7835122,94906.0,94905.0,0.2106632]
[1745923391798,0.7835122,94906.0,94905.0,0.2433632]
[1745923391993,0.7835122,94906.0,94905.0,0.2737632]
[1745923392193,0.7835122,94906.0,94905.0,0.2757632]
[1745923392691,0.7835122,94906.0,94905.0,0.2787632]
[1745923399809,0.57285,94906.0,94905.0,0.2787632]
[1745923400106,0.12,94906.0,94905.0,0.2483632]
[1745923400301,0.12,94906.0,94905.0,0.2789632]
[1745923401411,0.12,94906.0,94905.0,0.4897032]
[1745923402313,0.0312,94914.0,94913.0,0.2106455]
[1745923402896,0.0312,94914.0,94913.0,0.2435455]
[1745923403103,0.1831,94914.0,94913.0,0.2435455]
[1745923404214,0.1831,94914.0,94913.0,0.2445455]
[1745923405115,0.3937433,94914.0,94913.0,0.2445455]
[1745923408707,0.1831,94914.0,94913.0,0.2445455]
[1745923410824,0.1831,94914.0,94913.0,0.2755455]
[1745923413822,0.1831,94914.0,94913.0,0.2445455]
[1745923415614,0.01537677,94914.0,94913.0,0.2445455]
[1745923415922,0.01537677,94914.0,94913.0,0.2765455]
[1745923416622,0.01537677,94914.0,94913.0,1.7765455]
[1745923419525,0.01537677,94914.0,94913.0,2.1373455]
[1745923420323,0.01537677,94914.0,94913.0,2.3480655]
[1745923423138,0.2105961,94936.0,94916.0,0.0526596]
[1745923423433,0.2105961,94936.0,94935.0,0.2105967]
[1745923423434,0.3587448,94936.0,94935.0,0.2105967]
[1745923423937,0.7801248,94936.0,94935.0,0.2105967]
[1745923424234,0.9001248,94936.0,94935.0,0.2105967]
[1745923424832,0.9011248,94936.0,94935.0,0.2105967]
[1745923425333,0.91357504,94936.0,94935.0,0.2105967]
[1745923425534,0.91657504,94936.0,94935.0,0.2105967]
[1745923425834,0.92057504,94936.0,94935.0,0.2105967]
[1745923429134,0.91957504,94936.0,94935.0,0.2105967]
[1745923453343,0.91957504,94936.0,94935.0,0.2423967]
[1745923455736,0.88857504,94936.0,94935.0,0.2423967]
[1745923458644,0.82407504,94936.0,94935.0,0.2423967]
[1745923458844,0.40269504,94936.0,94935.0,0.2423967]
[1745923459637,0.43599504,94936.0,94935.0,0.2423967]
[1745923459838,0.127,94936.0,94935.0,0.4530667]
[1745923472258,0.127,94936.0,94935.0,0.2423967]
[1745923499378,0.3375945,94936.0,94935.0,0.2423967]
[1745923499569,0.5483045,94936.0,94935.0,0.2105967]
[1745923499769,0.7589745,94936.0,94935.0,0.2105967]
[1745923500283,0.8245745,94936.0,94935.0,0.2105967]
[1745923500471,0.61398,94936.0,94935.0,0.2105967]
[1745923501772,0.40331,94936.0,94935.0,0.2105967]
[1745923504573,0.61398,94936.0,94935.0,0.2105967]
[1745923504983,0.40331,94936.0,94935.0,0.2105967]
[1745923507582,0.61398,94936.0,94935.0,0.2105967]
[1745923510470,0.8245745,94936.0,94935.0,0.2105967]
[1745923511274,0.61398,94936.0,94935.0,0.2105967]
[1745923513671,0.8245745,94936.0,94935.0,0.2105967]
[1745923519488,0.4031945,94936.0,94935.0,0.2105967]
[1745923519690,0.2106011,94933.0,94932.0,0.2106024]
[1745923519989,0.6319911,94933.0,94932.0,0.2106024]
[1745923520184,0.7519911,94933.0,94932.0,0.2106024]
[1745923520389,0.2632674,94929.0,94928.0,0.2632651]
[1745923520586,0.2106144,94929.0,94928.0,0.2106122]
[1745923520789,0.2106144,94927.0,94926.0,0.2106154]
[1745923520993,0.2106189,94925.0,94924.0,0.2106191]
[1745923521184,0.4213289,94925.0,94924.0,0.2106191]
[1745923521486,0.6320189,94925.0,94924.0,0.2106191]
[1745923521684,0.6981189,94925.0,94924.0,0.2106191]
[1745923522185,0.83068534,94925.0,94924.0,0.2106191]
[1745923522579,0.88334054,94925.0,94924.0,0.2106211]
[1745923522891,0.2632796,94923.0,94922.0,0.210624]
[1745923523085,0.5939896,94923.0,94922.0,0.210624]
[1745923523290,0.8046896,94923.0,94922.0,0.210624]
[1745923524194,0.8076896,94923.0,94922.0,0.210624]
[1745923526193,0.3862796,94923.0,94922.0,0.210624]
[1745923526382,0.8076896,94923.0,94922.0,0.210624]
[1745923527496,0.2106277,94921.0,94920.0,0.6029285]
[1745923527695,0.4213377,94921.0,94920.0,0.6029285]
[1745923527894,0.6320377,94921.0,94920.0,0.6029285]
[1745923528085,0.8441377,94921.0,94920.0,0.6029285]
[1745923528984,0.6334377,94921.0,94920.0,0.6029285]
[1745923529195,0.8441377,94921.0,94920.0,0.6029285]
[1745923529394,0.8441377,94921.0,94920.0,0.0315]
[1745923529690,0.2106366,94919.0,94918.0,0.2106338]
[1745923530089,0.8156566,94919.0,94918.0,0.2106338]
[1745923530887,0.8166566,94919.0,94918.0,0.2106338]
[1745923532593,0.2106344,94918.0,94917.0,0.0305]
[1745923532897,0.210641,94915.0,94914.0,0.2633019]
[1745923533290,0.752071,94915.0,94914.0,0.2633019]
[1745923533492,0.0526627,94911.0,94904.0,0.052666]
[1745923533694,0.57151,94908.0,94907.0,0.0323]
[1745923533894,0.7821666,94908.0,94907.0,0.242958]
[1745923534085,0.2106566,94908.0,94907.0,0.242958]
[1745923535190,0.3306566,94908.0,94907.0,0.242958]
[1745923535995,0.3306566,94908.0,94907.0,0.244958]
[1745923536298,0.3306566,94908.0,94907.0,0.0343]
[1745923536502,0.3619566,94908.0,94907.0,0.0343]
[1745923537001,0.3306566,94908.0,94907.0,0.0353]
[1745923539392,0.7520966,94908.0,94907.0,0.0353]
[1745923539699,0.7846966,94908.0,94907.0,0.0353]
[1745923546398,1.1128966,94908.0,94907.0,0.0353]
[1745923546601,0.7840966,94908.0,94907.0,0.0353]